bitfinex/quotes_BTCUSD_20240818
["timestamp","ask_amount","ask_price","bid_price","bid_amount"]
[1723986417848,1e-08,60223.0,60222.0,3.09160746]
[1723986418058,1e-08,60223.0,60222.0,3.09161486]
[1723986418479,1e-08,60223.0,60222.0,2.90691486]
[1723986419143,1e-08,60223.0,60222.0,2.92091486]
[1723986419998,0.40290001,60223.0,60222.0,2.68844186]
[1723986420429,0.40290001,60223.0,60222.0,2.68744186]
[1723986420852,0.40290001,60223.0,60222.0,2.72769313]
[1723986421058,0.40290001,60223.0,60222.0,2.65799765]
[1723986421269,0.40290001,60223.0,60222.0,2.67835974]
[1723986421473,0.40290001,60223.0,60222.0,2.73678439]
[1723986421887,1e-08,60223.0,60222.0,2.73678439]
[1723986422300,1e-08,60223.0,60222.0,2.73678871]
[1723986422916,1e-08,60223.0,60222.0,3.1298475]
[1723986423770,0.40290001,60223.0,60222.0,3.1298475]
[1723986423976,0.58310001,60223.0,60222.0,3.1298475]
[1723986424590,0.58310001,60223.0,60222.0,1.69547032]
[1723986424839,0.58310001,60223.0,60222.0,0.39707109]
[1723986425245,0.58310001,60223.0,60222.0,1.89707109]
[1723986425449,0.58310001,60223.0,60222.0,2.11554409]
[1723986425654,0.58310001,60223.0,60222.0,2.10154409]
[1723986425858,0.58310001,60223.0,60222.0,2.11554409]
[1723986426068,0.58310001,60223.0,60222.0,2.12954409]
[1723986426482,0.58310001,60223.0,60222.0,2.19572799]
[1723986426703,0.58310001,60223.0,60222.0,2.1817182]
[1723986426925,0.58310001,60223.0,60222.0,2.2017182]
[1723986427135,0.58310001,60223.0,60222.0,1.9692452]
[1723986427357,0.58310001,60223.0,60222.0,1.94924487]
[1723986427577,0.58392501,60223.0,60222.0,1.91093217]
[1723986428837,0.58392501,60223.0,60222.0,2.14340517]
[1723986429254,0.58392501,60223.0,60222.0,2.1414947]
[1723986429460,0.58392501,60223.0,60222.0,2.15539589]
[1723986429726,0.58392501,60223.0,60222.0,2.20470859]
[1723986430124,0.58392501,60223.0,60222.0,2.15539589]
[1723986430545,0.58392501,60223.0,60222.0,2.20470859]
[1723986430983,0.58392501,60223.0,60222.0,1.92292289]
[1723986432652,0.58392501,60223.0,60222.0,1.97223559]
[1723986433071,0.58392501,60223.0,60222.0,1.95045752]
[1723986433299,0.58392501,60223.0,60222.0,1.9722388]
[1723986433943,0.58392501,60223.0,60222.0,0.1904531]
[1723986434810,0.58392501,60223.0,60222.0,0.0742171]
[1723986435019,0.58392501,60223.0,60222.0,0.06513402]
[1723986435257,0.58392501,60223.0,60222.0,0.04335274]
[1723986435699,0.583925,60223.0,60222.0,0.03235274]
[1723986436129,0.583925,60223.0,60222.0,0.04435274]
[1723986436345,0.583925,60223.0,60222.0,0.02035274]
[1723986436775,0.583925,60223.0,60222.0,0.03235274]
[1723986437414,0.583925,60223.0,60222.0,0.63534556]
[1723986437642,0.583925,60223.0,60222.0,0.64443628]
[1723986437871,0.583925,60223.0,60222.0,0.71848734]
[1723986438123,0.583925,60223.0,60222.0,1.08688544]
[1723986438365,0.583925,60223.0,60222.0,2.58688544]
[1723986438626,0.000825,60223.0,60222.0,2.61156912]
[1723986438885,1e-08,60223.0,60222.0,2.61156912]
[1723986439640,1e-08,60223.0,60222.0,2.51283438]
[1723986440522,0.37190001,60226.0,60225.0,0.581152]
[1723986440734,0.37190001,60226.0,60225.0,0.70649196]
[1723986441372,0.37190001,60226.0,60225.0,0.66432218]
[1723986441581,0.37190001,60226.0,60225.0,0.69737399]
[1723986441787,0.37190001,60226.0,60225.0,0.70645849]
[1723986441996,0.37190001,60226.0,60225.0,2.19737399]
[1723986442227,0.37190001,60226.0,60225.0,2.20945849]
[1723986442464,0.37190001,60226.0,60225.0,2.58085255]
[1723986443520,0.37190001,60226.0,60225.0,2.50676687]
[1723986444621,0.37190001,60226.0,60225.0,2.60554778]
[1723986444830,0.37190001,60226.0,60225.0,2.50676491]
[1723986445072,0.4017177,60229.0,60228.0,0.348675]
[1723986445280,0.4017177,60229.0,60228.0,0.44316706]
[1723986445488,0.0018177,60229.0,60228.0,1.04700549]
[1723986445699,0.0018177,60229.0,60228.0,1.06578441]
[1723986445907,0.0018177,60229.0,60228.0,0.99164774]
[1723986446365,0.0018177,60229.0,60228.0,2.47129308]
[1723986446570,0.0028177,60229.0,60228.0,2.59957733]
[1723986446774,0.0018177,60229.0,60228.0,2.59957733]
[1723986446983,0.4017177,60229.0,60228.0,2.50072844]
[1723986447189,0.4017177,60229.0,60228.0,2.51372844]
[1723986447399,0.4017177,60229.0,60228.0,1.09957733]
[1723986447600,0.4017177,60229.0,60228.0,1.06871663]
[1723986447827,0.4017177,60229.0,60228.0,1.09049441]
[1723986448034,0.4017177,60229.0,60228.0,2.59049441]
[1723986448236,0.4017177,60229.0,60228.0,2.61357733]
[1723986448644,0.4017177,60229.0,60228.0,2.51472844]
[1723986448847,0.4017177,60229.0,60228.0,1.11857173]
[1723986449085,0.4017177,60229.0,60228.0,1.09679408]
[1723986449295,0.4017177,60229.0,60228.0,1.11857623]
[1723986449503,0.4017177,60229.0,60228.0,2.62153081]
[1723986449708,0.0018177,60229.0,60228.0,2.86306319]
[1723986449932,0.0018177,60229.0,60228.0,2.88484065]
[1723986450368,0.0018177,60229.0,60228.0,2.76117885]
[1723986452484,0.5879177,60229.0,60228.0,1.02872885]
[1723986452717,0.5879177,60229.0,60228.0,0.99786859]
[1723986453201,0.5879177,60229.0,60228.0,1.01964605]
[1723986453440,0.5879177,60229.0,60228.0,0.99786859]
[1723986453683,0.5879177,60229.0,60228.0,1.01964605]
[1723986453917,0.5879177,60229.0,60228.0,0.99786284]
[1723986454173,0.5879177,60229.0,60228.0,1.0196403]
[1723986454412,0.5879177,60229.0,60228.0,1.01963982]
[1723986454620,0.5879177,60229.0,60228.0,0.9978626]
[1723986455049,0.5879177,60229.0,60228.0,1.0287225]
[1723986455393,0.5879177,60229.0,60228.0,1.01963982]
[1723986455957,0.5879177,60229.0,60228.0,1.0287225]
[1723986456187,0.5887417,60229.0,60228.0,1.01963982]
[1723986456455,0.5887417,60229.0,60228.0,1.0287225]
[1723986456660,0.5887417,60229.0,60228.0,1.01963982]
[1723986456858,0.5887417,60229.0,60228.0,0.78718982]
[1723986457896,0.5887417,60229.0,60228.0,0.7668389]
[1723986458098,0.5887417,60229.0,60228.0,0.78719185]
[1723986458503,0.5887417,60229.0,60228.0,0.78719033]
[1723986460851,0.5887417,60229.0,60228.0,2.28719033]
[1723986461068,0.5887417,60229.0,60228.0,2.29627351]
[1723986462327,0.5887417,60229.0,60228.0,2.52872351]
[1723986463179,0.5887417,60229.0,60228.0,2.52872342]
[1723986463588,0.5887417,60229.0,60228.0,2.29627342]
[1723986463790,0.5887417,60229.0,60228.0,2.52872342]
[1723986463999,0.0026417,60229.0,60228.0,3.12802342]
[1723986464405,0.0026417,60229.0,60228.0,3.36047342]
[1723986464555,0.0026417,60229.0,60228.0,3.12802342]
[1723986464763,0.0026417,60229.0,60228.0,3.11402342]
[1723986465025,0.0026417,60229.0,60228.0,2.52872342]
[1723986465150,0.5808417,60229.0,60228.0,2.52872342]
[1723986465365,0.5808417,60229.0,60228.0,2.51472342]
[1723986465573,0.5808417,60229.0,60228.0,2.52872342]
[1723986466202,0.0026417,60229.0,60228.0,2.48659103]
[1723986466400,0.0026417,60229.0,60228.0,2.52871681]
[1723986466725,0.0026417,60229.0,60228.0,2.52871682]
[1723986467737,0.0026417,60229.0,60228.0,2.51471682]
[1723986468166,0.0026417,60229.0,60228.0,2.52871682]
[1723986468600,0.0026417,60229.0,60228.0,2.51471682]
[1723986468949,0.0026417,60229.0,60228.0,2.52871682]
[1723986469160,0.0026417,60229.0,60228.0,2.51471682]
[1723986469361,0.0026417,60229.0,60228.0,2.50071682]
[1723986469611,0.0026417,60229.0,60228.0,2.52871682]
[1723986469812,0.00260019,60229.0,60228.0,2.52871682]
[1723986470016,0.00260019,60229.0,60228.0,2.74716682]
[1723986470189,0.00260019,60229.0,60228.0,2.52871682]
[1723986470456,0.00260019,60229.0,60228.0,2.47750908]
[1723986470636,0.00260019,60229.0,60228.0,2.52871349]
[1723986471422,0.00260019,60229.0,60228.0,2.76116349]
[1723986471643,0.00260019,60229.0,60228.0,2.51471349]
[1723986471831,0.00260019,60229.0,60228.0,2.52871349]
[1723986474240,0.00260019,60229.0,60228.0,1.02871349]
[1723986474661,0.00260019,60229.0,60228.0,1.00693939]
[1723986474866,0.00260019,60229.0,60228.0,1.02871474]
[1723986475287,0.56030019,60229.0,60228.0,0.56381474]
[1723986475531,0.56030019,60229.0,60228.0,0.79626474]
[1723986477137,0.37900019,60229.0,60228.0,0.79626474]
[1723986477957,0.37900019,60229.0,60228.0,0.56381474]
[1723986478160,0.37900019,60229.0,60228.0,0.56381356]
[1723986478783,0.37900019,60229.0,60228.0,0.54203979]
[1723986479110,0.37900019,60229.0,60228.0,0.56381555]
[1723986479473,0.37900019,60229.0,60228.0,2.06381626]
[1723986480673,0.37900019,60229.0,60228.0,2.06381962]
[1723986481660,0.37900019,60229.0,60228.0,2.0343854]
[1723986481905,0.37900019,60229.0,60228.0,2.06383705]
[1723986482460,0.37900019,60229.0,60228.0,0.56383705]
[1723986482842,0.37900019,60229.0,60228.0,2.06383705]
[1723986483633,0.37900019,60229.0,60228.0,2.29628705]
[1723986485666,0.37900019,60229.0,60228.0,2.2450579]
[1723986485899,0.37900019,60229.0,60228.0,2.29629326]
[1723986486318,0.56030019,60229.0,60228.0,1.94761826]
[1723986487191,0.56030019,60229.0,60228.0,0.43361826]
[1723986487405,0.56030019,60229.0,60228.0,0.48808065]
[1723986487406,0.67652319,60229.0,60228.0,0.48808065]
[1723986487613,0.56030019,60229.0,60228.0,0.04536127]
[1723986487815,0.67652319,60229.0,60228.0,0.48812385]
[1723986488013,0.67652319,60229.0,60228.0,0.46312385]
[1723986488252,0.67652319,60229.0,60228.0,0.40078737]
[1723986488465,0.90896919,60229.0,60228.0,0.03936127]
[1723986488700,0.67652319,60229.0,60228.0,0.07690973]
[1723986488939,0.67652319,60229.0,60228.0,0.02736127]
[1723986489185,0.90896919,60229.0,60228.0,0.02736127]
[1723986489892,1.14141519,60229.0,60228.0,0.02036593]
[1723986490119,1.14141519,60229.0,60228.0,0.02136593]
[1723986490343,1.54541573,60229.0,60228.0,0.001]
[1723986490797,1.138832,60227.0,60226.0,0.0009064]
[1723986492022,1.138832,60227.0,60226.0,0.0039064]
[1723986492437,1.138832,60227.0,60226.0,0.0009064]
[1723986492645,0.906379,60227.0,60226.0,0.0029064]
[1723986493296,1.138832,60227.0,60226.0,0.0029064]
[1723986494013,1.138832,60227.0,60226.0,0.0049064]
[1723986494498,0.906379,60227.0,60226.0,0.0049064]
[1723986494743,0.00260019,60229.0,60228.0,0.348675]
[1723986494977,0.00260019,60229.0,60228.0,1.13194999]
[1723986495209,0.00260019,60229.0,60228.0,2.63194999]
[1723986495436,0.00825,60232.0,60231.0,0.116219]
[1723986495662,0.00825,60232.0,60231.0,0.73743199]
[1723986495918,0.00825,60232.0,60231.0,0.50499399]
[1723986496149,0.00825,60232.0,60231.0,0.73743199]
[1723986497015,0.00825,60232.0,60231.0,0.96986999]
[1723986497632,0.00825,60232.0,60231.0,1.09347105]
[1723986497841,0.00825,60232.0,60231.0,0.97786999]
[1723986498263,0.00825,60232.0,60231.0,0.98586999]
[1723986498513,0.00825,60232.0,60231.0,0.98585684]
[1723986498722,0.00825,60232.0,60231.0,0.96985684]
[1723986498931,0.00825,60232.0,60231.0,0.98185684]
[1723986499121,0.00825,60232.0,60231.0,0.96985684]
[1723986499549,0.00825,60232.0,60231.0,1.10644164]
[1723986500490,0.00825,60232.0,60231.0,1.11744164]
[1723986500709,0.00825,60232.0,60231.0,2.60444164]
[1723986500993,0.00825,60232.0,60231.0,2.61521934]
[1723986501196,0.00825,60232.0,60231.0,2.62821934]
[1723986501400,0.00825,60232.0,60231.0,2.60744164]
[1723986501820,0.00825,60232.0,60231.0,2.62144164]
[1723986502603,0.00825,60232.0,60231.0,2.62144351]
[1723986503136,0.00825,60232.0,60231.0,2.6010897]
[1723986503318,0.00825,60232.0,60231.0,2.62144353]
[1723986503742,0.00825,60232.0,60231.0,2.38900553]
[1723986503859,0.00825,60232.0,60231.0,2.33958516]
[1723986504060,0.00825,60232.0,60231.0,2.26542073]
[1723986504527,0.00825,60232.0,60231.0,2.33958627]
[1723986504934,0.00825,60232.0,60231.0,2.26542073]
[1723986505146,0.00825,60232.0,60231.0,2.33958672]
[1723986505362,0.00825,60232.0,60231.0,2.26542682]
[1723986505765,0.00825,60232.0,60231.0,0.23874548]
[1723986505766,0.18945,60232.0,60231.0,0.23874548]
[1723986506245,0.18945,60232.0,60231.0,0.12252648]
[1723986506462,0.59045,60232.0,60231.0,0.04835992]
[1723986506671,0.59045,60232.0,60231.0,0.03435992]
[1723986506877,0.59045,60232.0,60231.0,0.014]
[1723986507080,0.59045,60232.0,60231.0,0.04836298]
[1723986507500,0.59045,60232.0,60231.0,0.03436298]
[1723986507703,0.59045,60232.0,60231.0,0.04336298]
[1723986507905,0.59045,60232.0,60231.0,0.02936298]
[1723986508258,0.59045,60232.0,60231.0,0.04336298]
[1723986508459,0.59045,60232.0,60231.0,0.02936298]
[1723986508696,0.59045,60232.0,60231.0,0.03936298]
[1723986509965,0.59045,60232.0,60231.0,0.019]
[1723986510181,0.59045,60232.0,60231.0,0.039363]
[1723986510417,0.59045,60232.0,60231.0,1.539363]
[1723986510636,0.59045,60232.0,60231.0,0.039363]
[1723986510866,0.59045,60232.0,60231.0,0.019]
[1723986511113,0.59045,60232.0,60231.0,0.03936387]
[1723986514379,0.59045,60232.0,60231.0,0.05055006]
[1723986514581,0.59045,60232.0,60231.0,1.53936387]
[1723986515148,0.59045,60232.0,60231.0,1.53936347]
[1723986515552,0.59045,60232.0,60231.0,1.519]
[1723986515754,0.59045,60232.0,60231.0,1.53936347]
[1723986517844,0.59045,60232.0,60231.0,0.03936347]
[1723986518557,0.59045,60232.0,60231.0,1.53936347]
[1723986519678,0.00825,60232.0,60231.0,1.53936347]
[1723986520371,0.00825,60232.0,60231.0,2.12045847]
[1723986520825,0.00825,60232.0,60231.0,2.16990954]
[1723986521065,0.00825,60232.0,60231.0,2.16990829]
[1723986521308,0.00825,60232.0,60231.0,2.16090829]
[1723986521515,0.00825,60232.0,60231.0,2.15990829]
[1723986521924,0.00825,60232.0,60231.0,2.16990829]
[1723986522247,0.00825,60232.0,60231.0,2.55900829]
[1723986522664,0.00825,60232.0,60231.0,2.54900829]
[1723986522861,0.00825,60232.0,60231.0,2.56000829]
[1723986523058,0.00825,60232.0,60231.0,2.56000665]
[1723986523316,0.00825,60232.0,60231.0,2.55100665]
[1723986523516,0.00825,60232.0,60231.0,2.16190665]
[1723986523716,0.00825,60232.0,60231.0,2.17190665]
[1723986524296,0.00825,60232.0,60231.0,1.93946876]
[1723986524721,0.00825,60232.0,60231.0,2.12245694]
[1723986525191,0.00825,60232.0,60231.0,2.62060058]
[1723986525625,0.00825,60232.0,60231.0,2.52170094]
[1723986525824,0.00825,60232.0,60231.0,2.64532549]
[1723986527055,0.00825,60232.0,60231.0,2.36165285]
[1723986527265,0.00825,60232.0,60231.0,2.52169481]
[1723986527473,0.00825,60232.0,60231.0,2.61148555]
[1723986527673,0.00825,60232.0,60231.0,2.52169551]
[1723986527878,0.00825,60232.0,60231.0,2.54348021]
[1723986528497,0.00825,60232.0,60231.0,2.93258021]
[1723986528708,0.00825,60232.0,60231.0,3.05620262]
[1723986528914,0.00825,60232.0,60231.0,3.24900262]
[1723986529590,0.0002,60239.0,60238.0,0.581027]
[1723986529831,0.0002,60239.0,60238.0,1.38570861]
[1723986530058,0.0002,60239.0,60238.0,1.98642151]
[1723986531199,0.0002,60239.0,60238.0,3.46463681]
[1723986531595,0.0002,60239.0,60238.0,3.50040754]
[1723986531833,0.0002,60239.0,60238.0,3.28199654]
[1723986532078,0.0002,60239.0,60238.0,2.89289654]
[1723986532314,0.0002,60239.0,60238.0,2.87889654]
[1723986532592,0.0002,60239.0,60238.0,2.70009654]
[1723986533386,0.0002,60239.0,60238.0,2.82349985]
[1723986533876,0.0002,60239.0,60238.0,2.80949985]
[1723986534341,0.0002,60239.0,60238.0,2.82349985]
[1723986534542,0.0002,60239.0,60238.0,2.80947039]
[1723986534977,0.0002,60239.0,60238.0,2.84647039]
[1723986535188,0.0002,60239.0,60238.0,3.56059348]
[1723986535395,0.00825,60243.0,60242.0,0.58199]
[1723986535604,0.00825,60243.0,60242.0,2.31880106]
[1723986535830,0.00825,60243.0,60242.0,2.50887211]
[1723986536060,0.00825,60243.0,60242.0,4.06663289]
[1723986536276,0.00825,60243.0,60242.0,4.63394723]
[1723986536509,0.00825,60243.0,60242.0,4.57618645]
[1723986536728,0.00825,60243.0,60242.0,4.59418645]
[1723986536937,0.00825,60243.0,60242.0,4.60818645]
[1723986537389,0.00825,60243.0,60242.0,3.91093802]
[1723986537835,0.00825,60243.0,60242.0,3.91493802]
[1723986538249,0.00825,60243.0,60242.0,3.92893802]
[1723986538459,0.00825,60243.0,60242.0,3.8888407]
[1723986538666,0.00825,60243.0,60242.0,4.16295787]
[1723986538874,0.00825,60243.0,60242.0,3.80873389]
[1723986539109,0.00825,60243.0,60242.0,4.68842983]
[1723986539312,0.0002,60259.0,60258.0,0.813169]
[1723986539523,0.0002,60259.0,60258.0,1.62816286]
[1723986539945,0.0002,60259.0,60258.0,3.12816286]
[1723986540394,0.0002,60259.0,60258.0,3.59488576]
[1723986540600,0.0002,60259.0,60258.0,3.51808284]
[1723986540806,0.0002,60259.0,60258.0,3.52715546]
[1723986541013,0.0002,60259.0,60258.0,3.53915546]
[1723986541450,0.00826,60265.0,60258.0,3.53915546]
[1723986541451,0.00826,60265.0,60264.0,0.814088]
[1723986541681,0.00826,60265.0,60264.0,2.09724484]
[1723986541894,0.00826,60265.0,60264.0,2.36438546]
[1723986542110,0.00826,60265.0,60264.0,3.86038546]
[1723986542345,0.00826,60265.0,60264.0,3.86438546]
[1723986542602,0.00385586,60265.0,60264.0,3.98327095]
[1723986543119,0.00385586,60265.0,60264.0,3.86038546]
[1723986543369,0.00826,60268.0,60267.0,1.234245]
[1723986543615,0.00826,60268.0,60267.0,2.01045957]
[1723986543841,0.00826,60268.0,60267.0,2.03221657]
[1723986544311,0.00826,60268.0,60267.0,2.01045957]
[1723986544530,0.00826,60280.0,60278.0,1.046156]
[1723986544753,0.383,60299.0,60278.0,1.046156]
[1723986544754,0.383,60299.0,60285.0,0.817805]
[1723986544958,0.0002,60299.0,60285.0,3.33488954]
[1723986545181,0.0002,60299.0,60285.0,3.37822886]
[1723986545384,0.0002,60299.0,60285.0,3.37422886]
[1723986545593,0.0002,60299.0,60285.0,3.37622886]
[1723986546011,0.0002,60299.0,60285.0,3.14399886]
[1723986546218,0.0002,60299.0,60285.0,3.14199886]
[1723986546423,0.2072518,60290.0,60285.0,1.52033932]
[1723986546630,0.384339,60286.0,60285.0,1.5]
[1723986546870,0.001539,60286.0,60285.0,2.25212954]
[1723986547578,0.001539,60286.0,60285.0,3.07365954]
[1723986547829,0.001539,60286.0,60285.0,3.08765954]
[1723986548073,0.001539,60286.0,60285.0,3.10465954]
[1723986548301,0.001539,60286.0,60285.0,2.29712954]
[1723986548541,0.001539,60286.0,60285.0,3.09565954]
[1723986548774,0.001539,60286.0,60285.0,3.10965954]
[1723986549009,0.001539,60286.0,60285.0,3.11065954]
[1723986549484,0.001539,60286.0,60285.0,3.12465954]
[1723986549721,0.001539,60286.0,60285.0,2.53635954]
[1723986550212,0.001539,60286.0,60285.0,2.52235954]
[1723986550429,0.001539,60286.0,60285.0,2.52135954]
[1723986550662,0.001539,60286.0,60285.0,2.92765954]
[1723986551065,0.001539,60286.0,60285.0,2.89965954]
[1723986551274,0.001539,60286.0,60285.0,3.14588954]
[1723986551499,0.001539,60286.0,60285.0,3.02765954]
[1723986551756,0.001539,60286.0,60285.0,3.01365954]
[1723986552032,0.001539,60286.0,60285.0,2.61235954]
[1723986552269,0.001539,60286.0,60285.0,2.108575]
[1723986552505,0.001539,60286.0,60285.0,1.876345]
[1723986552506,0.188539,60286.0,60285.0,1.876345]
[1723986552740,0.188539,60286.0,60285.0,2.108575]
[1723986552976,0.188539,60286.0,60285.0,0.376345]
[1723986553207,0.188539,60286.0,60285.0,0.594575]
[1723986553442,0.188539,60286.0,60285.0,2.094575]
[1723986553672,0.188539,60286.0,60285.0,1.876345]
[1723986553908,0.578139,60286.0,60285.0,1.644115]
[1723986554149,0.578139,60286.0,60285.0,1.514]
[1723986554616,0.578139,60286.0,60285.0,1.644115]
[1723986554832,0.391139,60286.0,60285.0,2.080575]
[1723986555041,0.391139,60286.0,60285.0,2.312805]
[1723986555279,0.391139,60286.0,60285.0,2.340805]
[1723986555482,0.391139,60286.0,60285.0,2.326805]
[1723986555919,0.391139,60286.0,60285.0,2.103575]
[1723986556123,0.391139,60286.0,60285.0,0.362345]
[1723986556616,0.001539,60286.0,60285.0,2.67525954]
[1723986556858,0.0202518,60290.0,60289.0,0.116107]
[1723986557088,0.0202518,60290.0,60289.0,0.98430354]
[1723986557346,0.0202518,60290.0,60289.0,0.75208954]
[1723986557806,0.0202518,60290.0,60289.0,0.77508954]
[1723986558273,0.0202518,60290.0,60289.0,0.78308954]
[1723986558967,0.4098518,60290.0,60289.0,0.78308954]
[1723986559214,0.0202518,60290.0,60289.0,1.01530354]
[1723986559691,0.1817,60296.0,60292.0,0.1161]
[1723986559937,0.1817,60296.0,60289.0,0.43476854]
[1723986559938,0.3896,60290.0,60289.0,0.016]
[1723986560174,0.3896,60290.0,60289.0,0.364321]
[1723986560399,0.3896,60290.0,60289.0,0.356321]
[1723986560624,0.3896,60290.0,60289.0,0.348321]
[1723986561090,0.3896,60290.0,60289.0,0.594535]
[1723986561767,0.3896,60290.0,60289.0,0.374321]
[1723986561992,0.3896,60290.0,60289.0,0.362321]
[1723986562505,0.3896,60296.0,60295.0,0.348286]
[1723986563711,0.3896,60296.0,60295.0,1.848286]
[1723986563950,0.5713,60296.0,60295.0,1.616095]
[1723986564184,0.5713,60296.0,60295.0,0.590477]
[1723986564652,0.5713,60296.0,60295.0,0.601477]
[1723986565342,0.3896,60296.0,60295.0,1.00522254]
[1723986565582,0.0002,60299.0,60298.0,0.34827]
[1723986565796,0.0002,60299.0,60298.0,0.58045]
[1723986566311,0.0002,60299.0,60298.0,2.08045]
[1723986566989,0.0002,60299.0,60298.0,2.09345]
[1723986567402,0.0002,60299.0,60298.0,2.11378721]
[1723986567660,0.0002,60299.0,60298.0,2.12078721]
[1723986567896,0.0002,60299.0,60298.0,2.53452175]
[1723986568132,0.0002,60299.0,60298.0,2.54152175]
[1723986568359,0.0002,60299.0,60298.0,2.53452175]
[1723986568603,0.0002,60299.0,60298.0,2.12078721]
[1723986568848,0.0002,60299.0,60298.0,0.38860721]
[1723986569084,0.0002,60299.0,60298.0,0.36860721]
[1723986569330,0.0002,60299.0,60298.0,0.38160721]
[1723986569553,0.001025,60299.0,60298.0,0.61378721]
[1723986569794,0.001025,60299.0,60298.0,0.38160721]
[1723986570322,0.001025,60299.0,60298.0,0.03333661]
[1723986570560,0.001025,60299.0,60298.0,0.15042661]
[1723986570799,0.001025,60299.0,60298.0,0.03333751]
[1723986571024,0.390625,60299.0,60298.0,0.16242751]
[1723986571272,0.390625,60299.0,60298.0,0.39460751]
[1723986571815,0.390125,60299.0,60298.0,0.62678751]
[1723986572090,0.390125,60299.0,60298.0,0.36860751]
[1723986572349,0.390125,60299.0,60298.0,0.39460751]
[1723986572865,0.390125,60299.0,60298.0,2.54052205]
[1723986572866,0.000525,60299.0,60298.0,2.54052205]
[1723986573102,0.000525,60299.0,60298.0,2.55352205]
[1723986574171,0.000525,60299.0,60298.0,2.11378751]
[1723986574453,0.000525,60299.0,60298.0,0.79934352]
[1723986574713,0.000525,60299.0,60298.0,2.28900454]
[1723986574945,1e-08,60299.0,60298.0,2.30934336]
[1723986575633,0.38480001,60299.0,60298.0,1.88260882]
[1723986576088,0.38480001,60299.0,60298.0,1.89660882]
[1723986576311,0.38480001,60299.0,60298.0,2.12878882]
[1723986576958,1e-08,60299.0,60298.0,2.12878882]
[1723986578689,1e-08,60299.0,60298.0,2.32334336]
[1723986579533,1e-08,60299.0,60298.0,0.82334336]
[1723986579938,1e-08,60299.0,60298.0,2.32334336]
[1723986581419,1e-08,60299.0,60298.0,2.30034336]
[1723986581668,2.69831855,60300.0,60299.0,0.58044]
[1723986581873,2.69831855,60300.0,60299.0,0.60077882]
[1723986582087,2.69831855,60300.0,60299.0,0.36860282]
[1723986582301,2.69831855,60300.0,60299.0,0.368601]
[1723986583187,3.26551855,60300.0,60299.0,0.034337]
[1723986583421,3.84594855,60300.0,60299.0,0.014]
[1723986583629,3.61377655,60300.0,60299.0,0.014]
[1723986583846,3.84594855,60300.0,60299.0,0.014]
[1723986584063,3.61377655,60300.0,60299.0,0.028]
[1723986584277,3.61377655,60300.0,60299.0,0.014]
[1723986584487,3.61377655,60300.0,60298.0,0.0009075]
[1723986584488,0.915464,60299.0,60298.0,0.0009075]
[1723986585132,0.683288,60299.0,60298.0,0.0009075]
[1723986585339,0.683288,60299.0,60298.0,0.02125152]
[1723986585781,0.5672,60299.0,60298.0,0.02825152]
[1723986586433,0.5672,60299.0,60298.0,0.03525022]
[1723986586848,0.5672,60299.0,60298.0,0.03524981]
[1723986587058,0.5672,60299.0,60298.0,0.15133981]
[1723986587262,0.5672,60299.0,60298.0,0.38351981]
[1723986587885,0.3848,60299.0,60298.0,2.11569981]
[1723986588098,2.69831855,60300.0,60299.0,0.348264]
[1723986588306,2.69831855,60300.0,60299.0,0.60078231]
[1723986588512,2.69831855,60300.0,60299.0,0.64984137]
[1723986588922,2.69831855,60300.0,60299.0,1.07657191]
[1723986589128,2.69831855,60300.0,60299.0,1.52451379]
[1723986589335,2.69831855,60300.0,60299.0,1.32285861]
[1723986589589,2.69831855,60300.0,60299.0,1.2989672]
[1723986590023,2.69831855,60300.0,60299.0,1.3089672]
[1723986590224,2.69831855,60300.0,60299.0,1.21021096]
[1723986590441,2.69831855,60300.0,60299.0,1.20021096]
[1723986590662,2.69831855,60300.0,60299.0,0.55530442]
[1723986590868,3.26551855,60300.0,60299.0,0.3825976]
[1723986591091,3.26551855,60300.0,60299.0,0.3965976]
[1723986591299,3.26551855,60300.0,60299.0,0.2138154]
[1723986591508,3.26551855,60300.0,60299.0,0.1998154]
[1723986591717,3.26551855,60300.0,60299.0,0.0897274]
[1723986591926,3.26551855,60300.0,60299.0,0.0403336]
[1723986592133,3.26551855,60300.0,60299.0,0.0343336]
[1723986592341,3.26551855,60300.0,60299.0,0.0303336]
[1723986592763,3.61377655,60300.0,60299.0,0.0393336]
[1723986592972,3.61377655,60300.0,60299.0,0.019]
[1723986593213,3.61377655,60300.0,60299.0,0.01]
[1723986593641,3.61377655,60300.0,60299.0,0.019]
[1723986594051,3.61377655,60300.0,60299.0,0.01]
[1723986594269,3.61377655,60300.0,60299.0,0.012]
[1723986595107,3.61377655,60300.0,60299.0,0.002]
[1723986595520,3.84594855,60300.0,60299.0,0.008]
[1723986595726,3.84594855,60300.0,60298.0,0.0009075]
[1723986595727,0.688788,60299.0,60298.0,0.0009075]
[1723986596189,0.920964,60299.0,60298.0,0.0009075]
[1723986596674,0.688788,60299.0,60298.0,0.0009075]
[1723986597143,0.688788,60299.0,60298.0,0.0039075]
[1723986597568,0.688788,60299.0,60298.0,0.0009075]
[1723986597780,0.5727,60299.0,60298.0,0.0009075]
[1723986598834,0.5727,60299.0,60298.0,0.0049075]
[1723986599044,0.5737,60299.0,60298.0,0.0049075]
[1723986599253,0.5727,60299.0,60298.0,0.0049075]
[1723986599665,0.688788,60299.0,60298.0,0.0049075]
[1723986600279,0.920964,60299.0,60298.0,0.0049075]
[1723986600688,1.15314,60299.0,60298.0,0.0049075]
[1723986600897,0.920964,60299.0,60298.0,0.0049075]
[1723986601315,1.09251854,60299.0,60298.0,0.0049075]
[1723986601938,1.09251854,60299.0,60298.0,0.0009075]
[1723986601939,0.85858203,60299.0,60298.0,0.0009075]
[1723986602149,1.09075803,60299.0,60298.0,0.0019075]
[1723986602372,0.57193949,60299.0,60298.0,0.0019075]
[1723986602794,0.57093949,60299.0,60298.0,0.0009075]
[1723986603001,0.57193949,60299.0,60298.0,0.02225696]
[1723986603442,0.57093949,60299.0,60298.0,0.02225696]
[1723986603649,0.57193949,60299.0,60298.0,0.02125696]
[1723986603857,0.57193949,60299.0,60298.0,0.02525696]
[1723986604267,0.57093949,60299.0,60298.0,0.02525696]
[1723986605118,2.69831855,60300.0,60298.0,0.02525696]
[1723986605119,2.69831855,60300.0,60299.0,0.116088]
[1723986605370,2.69831855,60300.0,60299.0,0.36861346]
[1723986605828,2.69831855,60300.0,60299.0,2.10078946]
[1723986606558,2.69831855,60300.0,60299.0,1.86861346]
[1723986607034,2.69831855,60300.0,60299.0,2.11678946]
[1723986607266,2.69831855,60300.0,60299.0,2.311344]